fUSD/lending_fUSD_20240713
["ID","MTS","AMOUNT","RATE_DAILY","PERIOD"]
[331918945,1720842639892,-1826.386,0.0001398,2]
[331918946,1720842639902,-1660.0,0.0001398,2]
[331918947,1720842639913,-445.786,0.0001398,2]
[331918948,1720842639923,-454.037,0.0001398,2]
[331918949,1720842639932,-622.269,0.0001398,2]
[331918950,1720842639944,-823.188,0.0001398,2]
[331918951,1720842639954,-1253.0,0.0001398,2]
[331918952,1720842639964,-150.0,0.0001398,2]
[331918953,1720842639976,-2378.0,0.0001398,2]
[331918954,1720842639987,-2439.685,0.0001398,2]
[331918955,1720842639998,-549.0,0.0001398,2]
[331918956,1720842640008,-213.0,0.0001398,2]
[331918957,1720842640017,-151.0,0.0001398,2]
[331918958,1720842640027,-190.924,0.0001398,2]
[331918959,1720842640037,-260.768,0.0001398,2]
[331918960,1720842640048,-162.0,0.0001398,2]
[331918961,1720842640057,-163.697,0.0001398,2]
[331918962,1720842640067,-151.231,0.0001398,2]
[331918964,1720842640076,-150.165,0.0001398,2]
[331918967,1720842640086,-197.271,0.0001398,2]
[331918969,1720842640096,-161.737,0.0001398,2]
[331918970,1720842640105,-170.948,0.0001398,2]
[331918971,1720842640114,-246.778,0.0001398,2]
[331918972,1720842640123,-500.0,0.00013989,2]
[331918973,1720842640132,-2500.0,0.00013989,3]
[331918974,1720842640141,-1655.28,0.00013989,2]
[331918975,1720842640150,-500.0,0.00013989,2]
[331918976,1720842640160,-500.0,0.00013989,2]
[331918977,1720842640169,-500.0,0.00013989,2]
[331918978,1720842640178,-20377.9566997,0.0001399,3]
[331918979,1720842640187,-1993.31,0.0001399,2]
[331918980,1720842640196,-1993.31,0.0001399,2]
[331918981,1720842640205,-1993.31,0.0001399,2]
[331918982,1720842640214,-1993.31,0.0001399,2]
[331918983,1720842640223,-8915.35605611,0.0001399,3]
[331918984,1720842640233,-1993.31,0.0001399,2]
[331918985,1720842640242,-8275.5839191,0.00013999,2]
[331918986,1720842640252,-153.26472077,0.00013999,2]
[331918987,1720842640261,-675.4939825,0.00013999,2]
[331918988,1720842640270,-40997.57773878,0.00013999,2]
[331918989,1720842640281,-1869.7443923,0.00013999,2]
[331918990,1720842640297,-7272.65439133,0.00013999,2]
[331918991,1720842640307,-3247.0,0.00013999,2]
[331918992,1720842640318,-1168.91354638,0.00013999,2]
[331918993,1720842640329,-1659.99434364,0.00013999,2]
[331918994,1720842640340,-2040.00565636,0.00013999,2]
[331918996,1720842640461,-487.75354483,0.00013999,2]
[331918997,1720842640523,-129.96749968,0.00013999,2]
[331918998,1720842640532,-882.64095615,0.00013999,2]
[331918999,1720842640543,-717.32904385,0.00013999,2]
[331919000,1720842640551,-414.26324211,0.00013999,2]
[331919001,1720842640563,-170.31406055,0.00013999,2]
[331919002,1720842640572,-500.0,0.00013999,2]
[331919003,1720842640580,-70.76593845,0.00013999,2]
[331919004,1720842640591,-1642.8995,0.00013999,2]
[331919005,1720842642912,-150.37,0.0001398,2]
[331919006,1720842642924,-461.38456155,0.00013999,2]
[331919007,1720842642934,-674.88923365,0.00013999,2]
[331919008,1720842642946,-693.24076635,0.00013999,2]
[331919009,1720842642956,-746.44,0.00013999,2]
[331919010,1720842642966,-1015.91,0.00013999,2]
[331919011,1720842642977,-38712.07207106,0.00014,2]
[331919012,1720842642990,-173700.62690797,0.00014,2]
[331919013,1720842643003,-55826.22824705,0.00014,2]
[331919014,1720842643014,-78136.42911923,0.00014,2]
[331919015,1720842643027,-3856.33934384,0.00014,2]
[331919016,1720842643039,-128409.17133424,0.00014,2]
[331919017,1720842643052,-496.07624443,0.00014,2]
[331919018,1720842643064,-1109.81448475,0.00014,2]
[331919019,1720842643075,-56302.26,0.00014,2]
[331919020,1720842643087,-74839.09920751,0.00014,2]
[331919021,1720842643098,-134367.21758748,0.00014,2]
[331919022,1720842643199,-529.37778124,0.00014,2]
[331919023,1720842643212,-252.00214189,0.00014,2]
[331919024,1720842643535,-853.02521005,0.00014,2]
[331919025,1720842643698,-13289.23339859,0.00014,2]
[331919026,1720842645496,-997.62050229,0.00014,2]
[331919027,1720842645508,-572.21,0.00014,2]
[331919028,1720842645519,-2942.80104,0.00014,2]
[331919029,1720842645529,-449.834,0.00014,2]
[331919030,1720842645540,-6584.2221912,0.00014,2]
[331919031,1720842645551,-2677.1854726,0.00014,2]
[331919045,1720842646696,-206.254,0.0001398,2]
[331919046,1720842646706,-203.03,0.0001398,2]
[331919047,1720842646715,-3554.03970779,0.00014,2]
[331919048,1720842646753,-2746.08080776,0.00014,2]
[331919049,1720842646818,-65254.09182587,0.00014,2]
[331919059,1720842905481,459.34,0.00011046,2]
[331919074,1720843346137,-202.42,0.00012855,2]
[331919075,1720843346158,-200.0,0.00012869,2]
[331919076,1720843346180,-250.0,0.00012922,2]
[331919077,1720843346206,-5268.5,0.00012933,2]
[331919078,1720843346227,-250.0,0.00013001,2]
[331919083,1720843436110,1983.0,0.00012955,2]
[331919084,1720843438596,458.64,0.0001094,2]
[331919085,1720843464784,269.72,0.00012954,2]
[331919087,1720843482841,155.68399159,0.00012314,2]
[331919088,1720843518211,250.0,0.00012853,2]
[331919089,1720843573208,340.05576758,0.00012314,2]
[331919093,1720843581860,371.98024083,0.00012314,2]
[331919094,1720843581883,77.97004738,0.00012314,2]
[331919096,1720843597261,297.23686,0.00012314,2]
[331919098,1720843650845,207.72453843,0.00012314,2]
[331919106,1720843746118,225.62,0.00012906,2]
[331919142,1720843798180,1000.0,0.00012868,2]
[331919164,1720843831503,-458.64,0.00013204,2]
[331919165,1720843831513,-541.73172,0.0001328,2]
[331919166,1720843831524,-4207.44239891,0.0001328,2]
[331919167,1720843831534,-516.65425231,0.00013516,2]
[331919168,1720843831543,-639.712098,0.00013667,2]
[331919169,1720843831552,-1088.400564,0.00013667,2]
[331919170,1720843831562,-485.43834991,0.00013689,2]
[331919171,1720843831573,-279.57997616,0.00013689,2]
[331919172,1720843831582,-150.0,0.00013698,2]
[331919173,1720843831591,-211.16769377,0.00013699,2]
[331919174,1720843831603,-38.83230623,0.00013699,2]
[331919175,1720843831611,-262.16769377,0.00013699,2]
[331919176,1720843831623,-27404.4685872,0.00013699,2]
[331919177,1720843831634,-775.19666386,0.00013699,2]
[331919178,1720843831645,-8729.38705517,0.00013699,2]
[331919179,1720843831655,-581.57,0.00013699,2]
[331919180,1720843831664,-1871.32,0.00013699,2]
[331919181,1720843831673,-3173.18192752,0.00013719,2]
[331919182,1720843831684,-1022.98488966,0.00013719,2]
[331919183,1720843831700,-803.83318282,0.00013719,2]
[331919184,1720843831710,-12775.20479459,0.00013736,2]
[331919185,1720843831719,-616.18959064,0.00013736,2]
[331919186,1720843831728,-4505.86363046,0.00013759,2]
[331919187,1720843831738,-204.8573,0.00013799,2]
[331919188,1720843831748,-319.2062,0.00013799,2]
[331919189,1720843831757,-879.1138,0.00013799,2]
[331919190,1720843831767,-1415.98990153,0.00013799,2]
[331919191,1720843831776,-6457.85811266,0.000138,2]
[331919192,1720843831793,-281.19172138,0.000138,2]
[331919193,1720843831804,-440.0,0.000138,2]
[331919194,1720843831815,-3153.12701687,0.000138,2]
[331919195,1720843831826,-436.64173545,0.000138,2]
[331919196,1720843831837,-1132.51470823,0.000138,2]
[331919197,1720843831849,-3394.36268549,0.000138,2]
[331919198,1720843831861,-312.75876885,0.000138,2]
[331919199,1720843831878,-36096.49716917,0.000138,2]
[331919200,1720843831887,-1415.98990152,0.0001381,2]
[331919202,1720843831896,-1415.98990152,0.00013821,2]
[331919204,1720843831905,-1415.98990152,0.00013833,2]
[331919206,1720843831915,-639.712098,0.00013838,2]
[331919208,1720843831923,-1088.400564,0.00013838,2]
[331919210,1720843831932,-1415.98990152,0.00013844,2]
[331919212,1720843831941,-1415.98990152,0.00013855,2]
[331919214,1720843831951,-1415.98990152,0.00013866,2]
[331919216,1720843831960,-1415.98990152,0.00013878,2]
[331919217,1720843831970,-5897.347,0.0001388,2]
[331919220,1720843831978,-588.729,0.0001388,2]
[331919223,1720843831987,-5224.629,0.0001388,2]
[331919225,1720843831996,-1666.0,0.0001388,2]
[331919228,1720843832005,-1200.0,0.0001388,2]
[331919231,1720843832017,-500.0,0.00013887,2]
[331919233,1720843832027,-200.0,0.00013887,2]
[331919234,1720843832036,-500.0,0.00013888,2]
[331919235,1720843832045,-500.0,0.00013888,2]
[331919236,1720843832054,-200.0,0.00013888,2]
[331919237,1720843832063,-1415.98990152,0.00013889,2]
[331919238,1720843832072,-155.0,0.00013889,2]
[331919239,1720843832083,-1713.12,0.00013898,2]
[331919240,1720843832092,-511.17297191,0.00013898,2]
[331919241,1720843832101,-500.0,0.00013898,2]
[331919242,1720843832110,-451.82631043,0.00013898,2]
[331919243,1720843832119,-500.0,0.00013898,2]
[331919244,1720843832128,-2500.0,0.00013898,3]
[331919245,1720843832137,-262.2698497,0.00013898,2]
[331919246,1720843832146,-534.74041613,0.00013898,2]
[331919247,1720843832155,-2217.29,0.00013898,2]
[331919248,1720843832165,-1415.35,0.00013898,2]
[331919249,1720843832174,-239.16414018,0.00013898,2]
[331919250,1720843832183,-500.0,0.00013898,2]
[331919251,1720843832192,-500.0,0.00013898,2]
[331919252,1720843832201,-465.59121793,0.00013898,2]
[331919253,1720843832211,-402.30251975,0.00013898,2]
[331919254,1720843832220,-39494.2863,0.00013899,2]
[331919255,1720843832229,-44943.3572,0.00013899,2]
[331919256,1720843832238,-2643.8266,0.00013899,2]
[331919257,1720843832247,-1000.0,0.00013899,2]
[331919258,1720843832256,-73368.0908,0.00013899,2]
[331919259,1720843832266,-6502.6672,0.00013899,2]
[331919260,1720843832275,-7500.0,0.00013899,2]
[331919261,1720843832284,-547.50514469,0.00013899,2]
[331919262,1720843832293,-500.0,0.000139,2]
[331919263,1720843832302,-1000.0,0.000139,2]
[331919264,1720843832313,-2043.63400463,0.000139,2]
[331919265,1720843832322,-160.1846872,0.000139,2]
[331919266,1720843832331,-1415.98990152,0.000139,2]
[331919267,1720843832340,-158.68956804,0.000139,2]
[331919268,1720843832349,-187.26252944,0.000139,2]
[331919269,1720843832358,-333.52073373,0.000139,2]
[331919270,1720843832367,-1015.0,0.000139,2]
[331919271,1720843832376,-1713.12,0.00013953,2]
[331919272,1720843832386,-500.0,0.00013953,2]
[331919273,1720843832395,-500.0,0.00013953,2]
[331919274,1720843832404,-2500.0,0.00013953,3]
[331919275,1720843832414,-2217.29,0.00013953,2]
[331919276,1720843832423,-1415.35,0.00013953,2]
[331919277,1720843832433,-500.0,0.00013953,2]
[331919278,1720843832443,-500.0,0.00013953,2]
[331919279,1720843832453,-245.474,0.0001398,2]
[331919280,1720843832464,-169.365,0.0001398,2]
[331919281,1720843832473,-361.426,0.0001398,2]
[331919282,1720843832483,-1665.418,0.0001398,2]
[331919283,1720843832492,-444.0,0.0001398,2]
[331919284,1720843832501,-449.0,0.0001398,2]
[331919285,1720843832511,-619.0,0.0001398,2]
[331919286,1720843832520,-182.834,0.0001398,2]
[331919287,1720843832529,-629.453,0.0001398,2]
[331919288,1720843832538,-198.634,0.0001398,2]
[331919289,1720843832547,-545.857,0.0001398,2]
[331919290,1720843832559,-477.21243786,0.00013989,2]
[331919291,1720843832570,-279.48904405,0.0001399,2]
[331919292,1720843832580,-5480.0935143,0.00013998,2]
[331919293,1720843832589,-38511.9866244,0.00013998,2]
[331919294,1720843832598,-981.7175012,0.00013998,2]
[331919295,1720843832607,-235.19869256,0.00013999,2]
[331919296,1720843832616,-500.0,0.00013999,2]
[331919297,1720843832626,-500.0,0.00013999,2]
[331919298,1720843832637,-500.0,0.00013999,2]
[331919299,1720843832647,-150.73301565,0.00013999,2]
[331919300,1720843832656,-1448.37,0.00013999,2]
[331919301,1720843832666,-529.26516718,0.00013999,2]
[331919302,1720843832675,-973.58,0.00013999,2]
[331919303,1720843832686,-150.81282178,0.00013999,2]
[331919304,1720843832698,-519.0,0.00014,2]
[331919305,1720843832707,-254249.14142156,0.00014,2]
[331919306,1720843832716,-16621.61825902,0.00014,2]
[331919307,1720843832729,-9808.16827319,0.00014,2]
[331919308,1720843832743,-13431.17867272,0.00014,2]
[331919309,1720843832763,-261.15578167,0.00013898,2]
[331919310,1720843832775,-88.31546571,0.00013898,2]
[331919311,1720843832784,-1135.16719084,0.00014,2]
[331919312,1720843832795,-4909.33218801,0.00014,2]
[331919313,1720843832806,-26792.70745138,0.00014,2]
[331919314,1720843832821,-1444.14581354,0.00014,2]
[331919315,1720843832831,-251.88644517,0.00014,2]
[331919316,1720843832842,-4334.02072546,0.00014,2]
[331919317,1720843832853,-572.88577079,0.00014,2]
[331919318,1720843832863,-284.1080006,0.00014,2]
[331919333,1720843837540,-161.47848316,0.00013798,2]
[331919334,1720843837550,-1074.556,0.0001388,2]
[331919335,1720843837560,-402.97422471,0.00014,2]
[331919336,1720843837572,-426673.88415512,0.00014,2]
[331919337,1720843837593,-590.05754824,0.00014,2]
[331919368,1720843838449,-1173.65274454,0.00014,2]
[331919371,1720843838462,-1118.64598073,0.00014,2]
[331919373,1720843838473,-8119.95917606,0.00014,2]
[331919375,1720843838484,-64923.21360309,0.00014,2]
[331919377,1720843838496,-16125.29401725,0.00014,2]
[331919381,1720843838522,-28722.8141531,0.00014,2]
[331919383,1720843838533,-426.35735425,0.00014,2]
[331919385,1720843838544,-412.0,0.00014,2]
[331919387,1720843838555,-11800.0,0.00014,2]
[331919510,1720843839657,-266568.78742557,0.00014,2]
[331919512,1720843839668,-456597.45567398,0.00014,2]
[331919699,1720843841586,-161.4784831,0.00013811,2]
[331919701,1720843841596,-3951.40004946,0.00014,2]
[331919703,1720843841607,-38093.31421743,0.00014,2]
[331919713,1720843841697,-2844.67368354,0.00014,2]
[331919731,1720843841855,-1259.96086,0.00014,2]
[331919823,1720843842656,-641.85958326,0.000139,2]
[331919825,1720843842669,-989.23475092,0.000139,2]
[331919827,1720843842678,-721.59520249,0.00014,2]
[331919839,1720843842814,-865.0,0.00014,2]
[331919854,1720843843030,-659.44059965,0.00014,2]
[331919865,1720843844428,-273.08815772,0.00014,2]
[331919889,1720843845895,-556.6941965,0.00014,2]
[331919890,1720843968136,435.05,0.00011094,2]
[331919891,1720843988284,7756.39855419,0.0001295,2]
[331919892,1720843988309,4825.83366264,0.0001295,2]
[331919893,1720844021433,250.0,0.00012957,2]
[331919894,1720844076402,250.0,0.00012938,2]
[331919895,1720844083023,1250.0,0.00013,2]
[331919897,1720844162995,162.54102814,0.00012954,2]
[331919899,1720844283356,1003.648505,0.00013,2]
[331919900,1720844330955,185.11,0.00012915,2]
[331919901,1720844397565,200.0,0.00012912,2]
[331919903,1720844433157,281.76953936,0.00012314,2]
[331919904,1720844448281,642.12,0.00012926,2]
[331919907,1720844547670,435.09,0.00010993,2]
[331919908,1720844702385,250.0,0.00012908,2]
[331919909,1720844715155,263.88726486,0.00011199,2]
[331919910,1720844715177,4866.98308805,0.00011199,2]
[331919913,1720844788810,150.0,0.000126,2]
[331919914,1720844789278,150.0,0.00012658,2]
[331919915,1720844789601,150.0,0.00012717,2]
[331919916,1720844789909,150.0,0.00012775,2]
[331919917,1720844790227,150.0,0.00012833,2]
[331919918,1720844790531,150.0,0.00012892,2]
[331919919,1720844790895,150.0,0.0001295,2]
[331919920,1720844800451,3130.93857126,0.00011199,2]
[331919921,1720844808329,475.44,0.0001289,2]
[331919940,1720844880905,476.63834069,0.00011199,2]
[331919941,1720844880928,2360.18408291,0.00011199,2]
[331919942,1720844900503,161.93,0.00012789,2]
[331919945,1720844928147,358.501514,0.00012943,2]
[331919946,1720844939955,840.0,0.00012799,2]
[331919948,1720844956727,298.04742984,0.00012314,2]
[331919950,1720844963001,297.23686,0.00012314,2]
[331919956,1720844992866,297.23686,0.00012314,2]
[331919962,1720845007379,-150.0,0.00013008,2]
[331919963,1720845007402,-150.0,0.00013067,2]
[331919964,1720845019937,580.67335458,0.00012314,2]
[331919971,1720845031704,-150.0,0.00013125,2]
[331919972,1720845031713,-2665.3,0.00013128,2]
[331919973,1720845031725,-483.40912966,0.00013128,2]
[331919974,1720845031734,-371.10892981,0.00013128,2]
[331919975,1720845031743,-300.0,0.00013128,2]
[331919976,1720845031753,-2058.38193675,0.00013128,2]
[331919977,1720845031763,-300.0,0.00013128,2]
[331919978,1720845031772,-150.0,0.00013183,2]
[331919979,1720845031781,-150.0,0.00013242,2]
[331919980,1720845031790,-435.09,0.00013256,2]
[331919981,1720845031799,-150.0,0.000133,2]
[331919982,1720845031808,-150.0,0.00013358,2]
[331919983,1720845031819,-150.0,0.00013417,2]
[331919984,1720845031829,-838.0,0.00013448,2]
[331919985,1720845031838,-150.0,0.00013475,2]
[331919986,1720845031848,-707.23799537,0.00013516,2]
[331919987,1720845031864,-284.27370463,0.00013516,2]
[331919988,1720845031874,-150.0,0.00013533,2]
[331919989,1720845031883,-449.34972049,0.00013543,2]
[331919990,1720845031893,-525.06350861,0.00013543,2]
[331919991,1720845031902,-150.0,0.00013592,2]
[331919992,1720845031912,-529.13,0.000136,2]
[331919993,1720845031921,-529.13,0.000136,2]
[331919994,1720845031930,-529.13,0.000136,2]
[331919995,1720845031940,-529.13,0.000136,2]
[331919996,1720845031949,-529.13,0.000136,2]
[331919997,1720845031958,-529.13,0.000136,2]
[331919998,1720845031968,-529.13,0.000136,2]
[331919999,1720845031977,-150.0,0.0001365,2]
[331920000,1720845031986,-250.0,0.00013699,2]
[331920001,1720845031995,-472.81,0.00013699,2]
[331920002,1720845032004,-150.0,0.00013708,2]
[331920003,1720845032014,-2683.31,0.00013736,2]
[331920004,1720845032023,-942.999543,0.00013759,2]
[331920006,1720845032033,-150.0,0.00013767,2]
[331920008,1720845032042,-417.93936495,0.00013774,2]
[331920010,1720845032051,-150.0,0.00013825,2]
[331920012,1720845032061,-150.0,0.00013825,2]
[331920013,1720845032071,-999.99,0.0001386,2]
[331920014,1720845032082,-2378.71583,0.0001386,2]
[331920016,1720845032093,-2378.71584,0.0001388,2]
[331920017,1720845032102,-150.0,0.00013883,2]
[331920018,1720845032112,-361.0,0.00013887,2]
[331920019,1720845032121,-566.883,0.00013887,2]
[331920020,1720845032131,-1200.0,0.00013887,2]
[331920021,1720845032140,-500.0,0.00013887,2]
[331920022,1720845032149,-500.0,0.00013888,2]
[331920023,1720845032159,-200.0,0.00013888,2]
[331920024,1720845032172,-499.99,0.00013888,2]
[331920025,1720845032183,-495.59646557,0.0001389,2]
[331920026,1720845032194,-261.65895969,0.0001389,2]
[331920027,1720845032205,-495.59646552,0.00013891,2]
[331920028,1720845032215,-261.65895961,0.00013891,2]
[331920029,1720845032226,-495.59646552,0.00013892,2]
[331920030,1720845032237,-261.65895961,0.00013892,2]
[331920031,1720845032246,-495.59646552,0.00013893,2]
[331920032,1720845032257,-261.65895961,0.00013893,2]
[331920033,1720845032269,-495.59646552,0.00013894,2]
[331920034,1720845032278,-261.65895961,0.00013894,2]
[331920035,1720845032287,-495.59646552,0.00013896,2]
[331920036,1720845032298,-261.65895961,0.00013896,2]
[331920037,1720845032307,-495.59646552,0.00013897,2]
[331920038,1720845032318,-261.65895961,0.00013897,2]
[331920039,1720845032327,-495.59646552,0.00013898,2]
[331920040,1720845032338,-261.65895961,0.00013898,2]
[331920041,1720845032347,-1388.02,0.00013898,2]
[331920042,1720845032359,-495.59646552,0.00013899,2]
[331920043,1720845032370,-261.65895961,0.00013899,2]
[331920044,1720845032380,-1000.0,0.00013899,2]
[331920045,1720845032392,-616.18959064,0.00013899,2]
[331920046,1720845032402,-495.59646552,0.000139,2]
[331920047,1720845032411,-261.65895961,0.000139,2]
[331920048,1720845032422,-1339.23604508,0.000139,2]
[331920049,1720845032433,-150.0,0.00013942,2]
[331920050,1720845032444,-300.0,0.0001395,2]
[331920051,1720845032455,-1388.02,0.00013953,2]
[331920052,1720845032464,-1071.0,0.0001398,2]
[331920053,1720845032473,-568.55,0.0001398,3]
[331920054,1720845032482,-1622.81,0.00013989,2]
[331920055,1720845032491,-500.0,0.00013989,2]
[331920056,1720845032501,-1356.94,0.00013989,2]
[331920057,1720845032510,-2071.26,0.00013989,2]
[331920058,1720845032521,-517.67941384,0.00013989,2]
[331920059,1720845032531,-500.0,0.00013989,2]
[331920060,1720845032539,-265.19254343,0.00013989,2]
[331920061,1720845032551,-194778.09592454,0.0001399,2]
[331920062,1720845032561,-164.91172843,0.0001399,2]
[331920063,1720845032570,-164.91172843,0.0001399,2]
[331920064,1720845032579,-371.15922798,0.00013997,2]
[331920065,1720845032588,-500.0,0.00013997,2]
[331920066,1720845032598,-2500.0,0.00013997,3]
[331920067,1720845032607,-369.30977381,0.00013997,2]
[331920068,1720845032616,-500.0,0.00013997,2]
[331920069,1720845032626,-500.0,0.00013997,2]
[331920070,1720845032635,-500.0,0.00013997,2]
[331920071,1720845032644,-1732.0703763,0.00013998,2]
[331920072,1720845032654,-693.880054,0.00013998,2]
[331920073,1720845032663,-27031.153004,0.00013998,2]
[331920074,1720845032672,-6269.447503,0.00013998,2]
[331920075,1720845032681,-226.55762072,0.00013999,2]
[331920076,1720845032848,-500.0,0.00013999,2]
[331920077,1720845032859,-500.0,0.00013999,2]
[331920078,1720845032870,-438.64822154,0.00013999,2]
[331920079,1720845032880,-500.0,0.00013999,2]
[331920080,1720845032890,-500.0,0.00013999,2]
[331920081,1720845032899,-500.0,0.00013999,2]
[331920082,1720845032908,-500.0,0.00013999,2]
[331920083,1720845032918,-500.0,0.00013999,2]
[331920084,1720845032927,-500.0,0.00013999,2]
[331920085,1720845032936,-500.0,0.00013999,2]
[331920086,1720845032945,-357.14882815,0.00013999,2]
[331920087,1720845032955,-500.0,0.00013999,2]
[331920088,1720845032965,-500.0,0.00013999,2]
[331920089,1720845032974,-500.0,0.00013999,2]
[331920090,1720845032983,-542.47506556,0.00013999,2]
[331920091,1720845032992,-500.0,0.00013999,2]
[331920092,1720845033001,-499.99999999,0.00013999,2]
[331920093,1720845033012,-933.02,0.00013999,2]
[331920094,1720845033021,-258.4929927,0.00013999,2]
[331920095,1720845033030,-190217.7899584,0.00014,2]
[331920096,1720845033043,-5631.02505531,0.00014,2]
[331920097,1720845033351,-5687.19154647,0.00014,2]
[331920098,1720845033364,-2094.2,0.00014,2]
[331920099,1720845033374,-939.2,0.00014,2]
[331920100,1720845033385,-11038.91143297,0.00014,2]
[331920101,1720845033396,-17688.71323719,0.00014,2]
[331920102,1720845033407,-4412.68478385,0.00014,2]
[331920103,1720845033419,-1787.48657195,0.00014,2]
[331920104,1720845033428,-168.88936159,0.00014,2]
[331920105,1720845033442,-4878.68678925,0.00014,2]
[331920106,1720845033453,-1722.63024292,0.00014,2]
[331920107,1720845033465,-897.75238019,0.00014,2]
[331920108,1720845033476,-50561.29916619,0.00014,2]
[331920109,1720845033487,-15739.95000001,0.00014,2]
[331920110,1720845033498,-4327.95496066,0.00014,2]
[331920111,1720845033509,-483.39404204,0.00014,2]
[331920112,1720845033521,-4101.96651417,0.00014,2]
[331920113,1720845033537,-565.82,0.00014,2]
[331920114,1720845033548,-361.36554768,0.00014,2]
[331920115,1720845033559,-488.57461296,0.00014,2]
[331920139,1720845037815,-1216.595,0.00013887,2]
[331920141,1720845037824,-616.18959064,0.00013889,2]
[331920143,1720845037834,-20423.628706,0.00014,2]
[331920144,1720845037845,-2821.24222915,0.00014,2]
[331920145,1720845037857,-1315.94695395,0.00014,2]
[331920146,1720845037868,-290.95999964,0.00014,2]
[331920147,1720845037879,-954.66206608,0.00014,2]
[331920148,1720845037895,-1978.07555297,0.00014,2]
[331920149,1720845037952,-4232.065367,0.00014,2]
[331920150,1720845037964,-392.92686579,0.00014,2]
[331920151,1720845037975,-5314.22404625,0.00014,2]
[331920152,1720845037986,-30050.0000001,0.00014,2]
[331920153,1720845037997,-2128.76516817,0.00014,2]
[331920154,1720845038014,-987.00002,0.00014,2]
[331920155,1720845038029,-540.33523103,0.00014,2]
[331920156,1720845038041,-2752.47299442,0.00014,2]
[331920157,1720845038265,-5066.79,0.00014,2]
[331920159,1720845038277,-502.07062434,0.00014,2]
[331920161,1720845038288,-255967.16502332,0.00014,2]
[331920163,1720845038298,-2127249.66660411,0.00014,2]
[331920165,1720845038307,-135.98859605,0.00014,2]
[331920307,1720845039848,-150.0,0.00013887,2]
[331920309,1720845039858,-1534.53,0.00014,2]
[331920315,1720845039909,-1848.48140395,0.00014,2]
[331920317,1720845039918,-11408.39591624,0.00014,2]
[331920319,1720845039931,-560.74648956,0.00014,2]
[331920322,1720845039943,-1328530.25328159,0.00014,2]
[331920324,1720845039955,-910.0,0.00014,2]
[331920327,1720845039974,-2627.22178218,0.00014,2]
[331920329,1720845039985,-13857.20132762,0.00014,2]
[331920331,1720845039997,-9613.92971346,0.00014,2]
[331920342,1720845040090,-8449.82868979,0.00014,2]
[331920344,1720845040102,-514.90811892,0.00014,2]
[331920347,1720845040114,-163442.7322628,0.00014,2]
[331920349,1720845040126,-222638.7851534,0.00014,2]
[331920351,1720845040137,-560.58454009,0.00014,2]
[331920354,1720845040151,-853.84598691,0.00014,2]
[331920413,1720845042788,-444.0,0.00013887,2]
[331920415,1720845042813,-637.77587847,0.00013998,2]
[331920417,1720845042840,-364.00000001,0.00013998,2]
[331920419,1720845042865,-246.38446032,0.00013998,2]
[331920421,1720845042885,-189.50493167,0.00014,2]
[331920424,1720845042905,-278.58350392,0.00014,2]
[331920425,1720845042916,-2835.0,0.00014,2]
[331920426,1720845042927,-1025.30389933,0.00014,2]
[331920427,1720845042938,-1822.31939735,0.00014,2]
[331920428,1720845042949,-5960.15353982,0.00014,2]
[331920429,1720845042979,-536.28001313,0.00014,2]
[331920430,1720845042991,-30000.0,0.00014,2]
[331920432,1720845044717,-302.23,0.00014,2]
[331920433,1720845044729,-300.1,0.00014,2]
[331920434,1720845044741,-301.132,0.00014,2]
[331920435,1720845044752,-274.264,0.00014,2]
[331920436,1720845044763,-309.865,0.00014,2]